fUST/lending_fUST_20240414
["ID","MTS","AMOUNT","RATE_DAILY","PERIOD"]
[322541731,1713043842925,-632.13,0.00054794,120]
[322541752,1713043843016,-857.91,0.00054794,120]
[322541755,1713043843026,-500.0,0.00054794,120]
[322541757,1713043843035,-500.0,0.00054794,120]
[322541759,1713043843047,-500.0,0.00054794,120]
[322541763,1713043843056,-500.0,0.00054794,120]
[322541765,1713043843066,-500.0,0.00054794,120]
[322541767,1713043843075,-796.34,0.00054794,120]
[322541770,1713043843084,-260.33821339,0.00054794,120]
[322541773,1713043843093,-509.53797973,0.00054794,120]
[322541776,1713043843102,-221.02911687,0.00054794,120]
[322541780,1713043843112,-500.0,0.00054794,120]
[322541785,1713043843121,-500.0,0.00054794,120]
[322541793,1713043843131,-500.0,0.00054794,120]
[322541797,1713043843140,-500.0,0.00054794,120]
[322541802,1713043843149,-543.36,0.00054794,120]
[322541807,1713043843158,-694.23,0.00054794,120]
[322541812,1713043843168,-500.0,0.00054794,120]
[322541818,1713043843177,-500.0,0.00054794,120]
[322541823,1713043843187,-500.0,0.00054794,120]
[322541828,1713043843197,-500.0,0.00054794,120]
[322541835,1713043843206,-505.69584585,0.00054794,120]
[322541840,1713043843217,-500.0,0.00054794,120]
[322541845,1713043843232,-2066.69,0.00054794,120]
[322541852,1713043843242,-500.0,0.00054794,120]
[322541860,1713043843251,-500.0,0.00054794,120]
[322541866,1713043843260,-500.0,0.00054794,120]
[322541872,1713043843270,-834.43,0.00054794,120]
[322541877,1713043843279,-508.54822273,0.00054794,120]
[322541882,1713043843289,-500.0,0.00054794,60]
[322541886,1713043843303,-500.65378748,0.00054794,120]
[322541890,1713043843314,-500.0,0.00054794,120]
[322541894,1713043843324,-500.0,0.00054794,120]
[322541896,1713043843333,-500.0,0.00054794,120]
[322541898,1713043843342,-500.0,0.00054794,120]
[322541900,1713043843352,-500.0,0.00054794,120]
[322541902,1713043843361,-951.32,0.00054794,120]
[322541904,1713043843370,-500.0,0.00054794,120]
[322541906,1713043843381,-500.0,0.00054794,120]
[322541908,1713043843390,-2480.12,0.00054794,120]
[322541909,1713043843399,-500.0,0.00054794,120]
[322541911,1713043843408,-682.83,0.00054794,120]
[322541913,1713043843417,-500.0,0.00054794,120]
[322541914,1713043843429,-500.0,0.00054794,120]
[322541915,1713043843440,-500.0,0.00054794,120]
[322541916,1713043843450,-500.0,0.00054794,120]
[322541917,1713043843459,-500.0,0.00054794,120]
[322541918,1713043843468,-500.0,0.00054794,120]
[322541919,1713043843477,-500.0,0.00054794,120]
[322541920,1713043843486,-500.0,0.00054794,120]
[322541921,1713043843495,-500.0,0.00054794,120]
[322541922,1713043843505,-500.0,0.00054794,120]
[322541923,1713043843515,-500.0,0.00054794,120]
[322541925,1713043843524,-500.0,0.00054794,120]
[322541927,1713043843534,-500.0,0.00054794,120]
[322541928,1713043843541,-1897.13,0.00054794,120]
[322541930,1713043843555,-500.0,0.00054794,120]
[322541932,1713043843564,-500.0,0.00054794,120]
[322541934,1713043843574,-500.0,0.00054794,120]
[322541936,1713043843583,-500.0,0.00054794,120]
[322541939,1713043843592,-500.0,0.00054794,120]
[322541940,1713043843604,-505.27886547,0.00054794,120]
[322541943,1713043843614,-500.0,0.00054794,120]
[322541945,1713043843623,-1110.65,0.00054794,120]
[322541946,1713043843632,-500.0,0.00054794,120]
[322541947,1713043843641,-500.0,0.00054794,120]
[322541949,1713043843649,-500.0,0.00054794,120]
[322541951,1713043843657,-362.12041687,0.00054794,120]
[322541953,1713043843667,-892.88,0.00054794,120]
[322541955,1713043843676,-500.0,0.00054794,120]
[322541957,1713043843684,-500.0,0.00054794,120]
[322541959,1713043843693,-612.97,0.00054794,120]
[322541961,1713043843702,-500.0,0.00054794,120]
[322541963,1713043843712,-201.19075171,0.00054794,120]
[322541965,1713043843721,-538.12,0.00054794,120]
[322541966,1713043843730,-500.0,0.00054794,120]
[322541968,1713043843740,-500.0,0.00054794,120]
[322541970,1713043843755,-24405.4,0.00054794,120]
[322541972,1713043843764,-500.0,0.00054794,120]
[322541974,1713043843773,-500.0,0.00054794,120]
[322541976,1713043843782,-500.0,0.00054794,120]
[322541978,1713043843791,-927.66,0.00054794,120]
[322541980,1713043843803,-7531.75,0.00054794,120]
[322541982,1713043843812,-500.0,0.00054794,120]
[322541984,1713043843821,-500.0,0.00054794,120]
[322541986,1713043843830,-500.0,0.00054794,120]
[322541988,1713043843840,-500.0,0.00054794,120]
[322541991,1713043843849,-500.0,0.00054794,120]
[322541994,1713043843859,-1956.19,0.00054794,21]
[322541997,1713043843868,-509.66714074,0.00054794,120]
[322542000,1713043843877,-821.14,0.00054794,120]
[322542003,1713043843886,-523.48574494,0.00054794,120]
[322542008,1713043843895,-500.0,0.00054794,120]
[322542012,1713043843904,-447.73162758,0.00054794,120]
[322542017,1713043843913,-1208.76,0.00054794,2]
[322542022,1713043843922,-500.0,0.00054794,120]
[322542026,1713043843931,-500.0,0.00054794,120]
[322542032,1713043843939,-500.0,0.00054794,120]
[322542036,1713043843948,-500.31148801,0.00054794,120]
[322542041,1713043843957,-500.0,0.00054794,120]
[322542045,1713043843965,-500.0,0.00054794,120]
[322542048,1713043843974,-500.0,0.00054794,120]
[322542051,1713043843982,-2913.78,0.00054794,120]
[322542054,1713043843991,-500.0,0.00054794,120]
[322542057,1713043844000,-169.199833,0.00054794,2]
[322542059,1713043844008,-13569.5891866,0.000557,120]
[322542061,1713043844017,-153.74365604,0.00056672,120]
[322542066,1713043844026,-158.23278778,0.00057372,120]
[322542069,1713043844035,-153.8524365,0.00058365,120]
[322542071,1713043844048,-158.23278778,0.00058778,120]
[322542073,1713043844057,-158.23278778,0.00059125,120]
[322542076,1713043844065,-182.808124,0.00059795,120]
[322542079,1713043844074,-158.23278778,0.00060025,120]
[322542081,1713043844083,-153.8524365,0.00060988,120]
[322542083,1713043844093,-158.23278778,0.00061466,120]
[322542085,1713043844102,-158.23278778,0.00061639,120]
[322542087,1713043844111,-150.8642222,0.00063015,2]
[322542089,1713043844120,-153.74365604,0.00063914,120]
[322542091,1713043844128,-169.199833,0.00063927,2]
[322542093,1713043844137,-301.7284444,0.00064074,4]
[322542095,1713043844146,-158.23278778,0.0006457,120]
[322542097,1713043844155,-153.8524365,0.00064836,120]
[322542099,1713043844164,-153.74365604,0.00065221,120]
[322542101,1713043844173,-153.8524365,0.00065523,120]
[322542103,1713043844182,-285.20510678,0.000669,120]
[322542105,1713043844191,-153.74365604,0.00067255,120]
[322542107,1713043844200,-153.8524365,0.00067895,120]
[322542109,1713043844209,-153.74365604,0.00068517,120]
[322542111,1713043844218,-153.8524365,0.00068891,120]
[322542113,1713043844227,-158.23278778,0.00068912,120]
[322542115,1713043844236,-158.23278778,0.00069715,120]
[322542117,1713043844245,-802.22512729,0.00069804,7]
[322542119,1713043844253,-3739.92665832,0.0007,120]
[322542121,1713043844262,-158.23278778,0.00071293,120]
[322542123,1713043844271,-158.23278778,0.00071516,120]
[322542125,1713043844279,-153.74365604,0.00071708,120]
[322542127,1713043844288,-153.74365604,0.00072645,120]
[322542129,1713043844300,-158.23278778,0.00072841,120]
[322542131,1713043844309,-169.199833,0.00073059,120]
[322542133,1713043844318,-153.8524365,0.00073467,120]
[322542135,1713043844328,-158.70213723,0.00073878,120]
[322542137,1713043844337,-153.8524365,0.00074588,120]
[322542139,1713043844346,-158.70213723,0.00075845,120]
[322542141,1713043844355,-158.23278778,0.00076701,120]
[322542143,1713043844363,-7844.10287274,0.00076708,7]
[322542145,1713043844372,-1287.74,0.00076711,30]
[322542146,1713043844383,-1287.74,0.00076711,30]
[322542148,1713043844392,-500.0,0.00076711,120]
[322542150,1713043844401,-1287.74,0.00076711,30]
[322542152,1713043844409,-2575.48,0.00076711,30]
[322542154,1713043844418,-500.0,0.00076712,120]
[322542156,1713043844430,-500.0,0.00076712,120]
[322542158,1713043844442,-500.0,0.00076712,120]
[322542160,1713043844451,-500.0,0.00076712,120]
[322542162,1713043844460,-500.0,0.00076712,120]
[322542164,1713043844469,-500.0,0.00076712,120]
[322542166,1713043844478,-500.0,0.00076712,120]
[322542173,1713043844544,-500.0,0.00076712,120]
[322542175,1713043844560,-559.6,0.00076712,120]
[322542177,1713043844569,-500.0,0.00076712,120]
[322542179,1713043844579,-500.0,0.00076712,120]
[322542181,1713043844588,-500.0,0.00076712,120]
[322542183,1713043844597,-500.0,0.00076712,120]
[322542185,1713043844606,-500.0,0.00076712,120]
[322542187,1713043844615,-503.20569596,0.00076712,120]
[322542189,1713043844624,-500.0,0.00076712,120]
[322542191,1713043844634,-500.0,0.00076712,120]
[322542192,1713043844643,-500.0,0.00076712,120]
[322542194,1713043844653,-500.0,0.00076712,120]
[322542196,1713043844662,-500.0,0.00076712,120]
[322542198,1713043844671,-500.0,0.00076712,120]
[322542200,1713043844680,-500.0,0.00076712,60]
[322542202,1713043844689,-500.0,0.00076712,120]
[322542204,1713043844698,-500.0,0.00076712,120]
[322542206,1713043844707,-260.042809,0.00076712,120]
[322542208,1713043844716,-500.0,0.00076712,120]
[322542210,1713043844725,-300.0,0.00076712,7]
[322542212,1713043844734,-500.0,0.00076712,120]
[322542214,1713043844743,-500.0,0.00076712,120]
[322542216,1713043844752,-500.0,0.00076712,120]
[322542218,1713043844761,-500.0,0.00076712,120]
[322542220,1713043844771,-697.04,0.00076712,120]
[322542222,1713043844780,-512.03717633,0.00076712,120]
[322542224,1713043844789,-500.0,0.00076712,120]
[322542226,1713043844800,-500.0,0.00076712,120]
[322542228,1713043844809,-500.0,0.00076712,120]
[322542230,1713043844818,-2363.12,0.00076712,120]
[322542232,1713043844827,-500.0,0.00076712,120]
[322542233,1713043844837,-500.0,0.00076712,120]
[322542235,1713043844846,-500.0,0.00076712,120]
[322542237,1713043844855,-500.0,0.00076712,120]
[322542239,1713043844864,-500.0,0.00076712,120]
[322542241,1713043844873,-500.0,0.00076712,120]
[322542243,1713043844882,-500.0,0.00076712,120]
[322542245,1713043844891,-500.0,0.00076712,120]
[322542247,1713043844900,-2418.31,0.00076712,120]
[322542249,1713043844913,-500.0,0.00076712,120]
[322542251,1713043844922,-557.83602978,0.00076712,120]
[322542253,1713043844930,-926.67,0.00076712,120]
[322542255,1713043844940,-510.00208274,0.00076712,120]
[322542256,1713043844948,-500.0,0.00076712,120]
[322542258,1713043844956,-500.0,0.00076712,120]
[322542260,1713043844965,-500.0,0.00076712,120]
[322542262,1713043844974,-500.0,0.00076712,120]
[322542264,1713043844983,-500.0,0.00076712,120]
[322542266,1713043844992,-500.0,0.00076712,120]
[322542268,1713043845001,-500.0,0.00076712,120]
[322542270,1713043845010,-683.0,0.00076712,120]
[322542272,1713043845019,-500.0,0.00076712,120]
[322542274,1713043845028,-500.0,0.00076712,120]
[322542276,1713043845037,-293.0,0.00076712,120]
[322542278,1713043845048,-500.0,0.00076712,120]
[322542280,1713043845057,-500.0,0.00076712,120]
[322542282,1713043845066,-500.0,0.00076712,120]
[322542284,1713043845075,-878.89,0.00076712,120]
[322542285,1713043845084,-500.0,0.00076712,120]
[322542287,1713043845093,-500.0,0.00076712,120]
[322542289,1713043845102,-500.0,0.00076712,120]
[322542291,1713043845110,-500.0,0.00076712,120]
[322542293,1713043845119,-500.0,0.00076712,120]
[322542295,1713043845127,-502.09780536,0.00076712,120]
[322542297,1713043845136,-500.0,0.00076712,120]
[322542299,1713043845145,-500.0,0.00076712,120]
[322542301,1713043845154,-500.0,0.00076712,120]
[322542303,1713043845163,-500.0,0.00076712,120]
[322542305,1713043845172,-500.0,0.00076712,120]
[322542306,1713043845181,-500.0,0.00076712,120]
[322542308,1713043845189,-500.0,0.00076712,120]
[322542310,1713043845198,-500.0,0.00076712,120]
[322542312,1713043845207,-500.0,0.00076712,120]
[322542314,1713043845216,-500.0,0.00076712,120]
[322542316,1713043845225,-500.0,0.00076712,120]
[322542318,1713043845234,-505.95434018,0.00076712,120]
[322542320,1713043845243,-500.0,0.00076712,120]
[322542322,1713043845252,-536.32,0.00076712,120]
[322542324,1713043845261,-500.0,0.00076712,120]
[322542326,1713043845270,-500.0,0.00076712,120]
[322542328,1713043845278,-500.0,0.00076712,120]
[322542330,1713043845287,-500.0,0.00076712,120]
[322542332,1713043845297,-1153.96,0.00076712,120]
[322542334,1713043845306,-500.0,0.00076712,120]
[322542336,1713043845314,-500.0,0.00076712,120]
[322542338,1713043845323,-500.0,0.00076712,120]
[322542340,1713043845332,-500.0,0.00076712,120]
[322542341,1713043845341,-500.0,0.00076712,120]
[322542343,1713043845350,-500.0,0.00076712,120]
[322542345,1713043845359,-500.0,0.00076712,120]
[322542347,1713043845368,-518.62159818,0.00076712,120]
[322542349,1713043845377,-500.0,0.00076712,120]
[322542351,1713043845389,-500.0,0.00076712,120]
[322542353,1713043845398,-502.33667691,0.00076712,120]
[322542355,1713043845407,-500.0,0.00076712,120]
[322542357,1713043845416,-500.0,0.00076712,120]
[322542359,1713043845427,-385.1413903,0.00076712,120]
[322542361,1713043845438,-500.0,0.00076712,120]
[322542363,1713043845450,-500.0,0.00076712,120]
[322542365,1713043845460,-500.0,0.00076712,120]
[322542367,1713043845468,-500.0,0.00076712,120]
[322542369,1713043845477,-500.0,0.00076712,120]
[322542371,1713043845485,-521.03789969,0.00076712,120]
[322542373,1713043845495,-500.0,0.00076712,120]
[322542375,1713043845503,-518.16411706,0.00076712,120]
[322542377,1713043845512,-421.71566501,0.00076712,120]
[322542379,1713043845521,-526.3860513,0.00076712,120]
[322542381,1713043845530,-500.0,0.00076712,120]
[322542382,1713043845539,-500.0,0.00076712,120]
[322542385,1713043845552,-500.0,0.00076712,120]
[322542386,1713043845561,-500.0,0.00076712,120]
[322542388,1713043845570,-463.26359933,0.00076712,120]
[322542390,1713043845579,-500.4774247,0.00076712,120]
[322542392,1713043845588,-500.0,0.00076712,120]
[322542394,1713043845598,-500.0,0.00076712,120]
[322542396,1713043845608,-621.06,0.00076712,120]
[322542398,1713043845617,-500.0,0.00076712,120]
[322542400,1713043845627,-500.0,0.00076712,120]
[322542402,1713043845637,-500.0,0.00076712,120]
[322542404,1713043845646,-500.0,0.00076712,120]
[322542406,1713043845656,-500.0,0.00076712,120]
[322542408,1713043845665,-500.0,0.00076712,120]
[322542410,1713043845674,-500.0,0.00076712,120]
[322542412,1713043845683,-500.0,0.00076712,120]
[322542414,1713043845692,-500.0,0.00076712,120]
[322542416,1713043845700,-500.0,0.00076712,120]
[322542418,1713043845709,-500.0,0.00076712,120]
[322542420,1713043845718,-500.0,0.00076712,120]
[322542421,1713043845727,-157.59222756,0.00076712,120]
[322542423,1713043845736,-500.0,0.00076712,120]
[322542425,1713043845745,-500.0,0.00076712,120]
[322542427,1713043845754,-500.0,0.00076712,120]
[322542429,1713043845763,-500.0,0.00076712,120]
[322542431,1713043845771,-499.68616725,0.00076712,120]
[322542433,1713043845780,-500.0,0.00076712,120]
[322542435,1713043845789,-500.0,0.00076712,120]
[322542437,1713043845799,-1092.55,0.00076712,120]
[322542439,1713043845808,-500.0,0.00076712,120]
[322542441,1713043845817,-500.0,0.00076712,120]
[322542443,1713043845826,-500.0,0.00076712,120]
[322542445,1713043845835,-500.0,0.00076712,120]
[322542447,1713043845843,-500.0,0.00076712,120]
[322542449,1713043845855,-500.0,0.00076712,120]
[322542451,1713043845864,-500.0,0.00076712,120]
[322542460,1713043845935,-518.86018913,0.00076712,120]
[322542462,1713043845944,-500.0,0.00076712,120]
[322542464,1713043845955,-499.999999,0.00076712,120]
[322542466,1713043845964,-310.46898744,0.00076712,120]
[322542468,1713043845973,-500.0,0.00076712,120]
[322542470,1713043845982,-500.0,0.00076712,120]
[322542472,1713043845992,-500.0,0.00076712,120]
[322542474,1713043846001,-500.0,0.00076712,120]
[322542476,1713043846010,-510.01639242,0.00076712,120]
[322542477,1713043846018,-280.47530661,0.00076712,120]
[322542479,1713043846027,-517.99282067,0.00076712,120]
[322542481,1713043846036,-500.0,0.00076712,120]
[322542484,1713043846048,-500.0,0.00076712,120]
[322542486,1713043846057,-500.0,0.00076712,120]
[322542488,1713043846066,-506.35110032,0.00076712,120]
[322542490,1713043846075,-500.0,0.00076712,120]
[322542493,1713043846084,-500.0,0.00076712,120]
[322542496,1713043846094,-500.0,0.00076712,120]
[322542499,1713043846103,-500.0,0.00076712,120]
[322542502,1713043846111,-500.0,0.00076712,120]
[322542505,1713043846120,-500.0,0.00076712,120]
[322542508,1713043846129,-1486.08,0.00076712,120]
[322542512,1713043846138,-500.0,0.00076712,120]
[322542515,1713043846147,-500.0,0.00076712,120]
[322542519,1713043846156,-748.04,0.00076712,120]
[322542522,1713043846164,-500.0,0.00076712,120]
[322542525,1713043846173,-500.0,0.00076712,120]
[322542528,1713043846184,-500.0,0.00076712,120]
[322542531,1713043846192,-500.0,0.00076712,120]
[322542534,1713043846202,-500.0,0.00076712,120]
[322542537,1713043846211,-500.0,0.00076712,120]
[322542540,1713043846220,-500.0,0.00076712,120]
[322542543,1713043846229,-502.20870567,0.00076712,120]
[322542546,1713043846238,-500.0,0.00076712,120]
[322542549,1713043846246,-1388.41,0.00076712,120]
[322542552,1713043846255,-482.63853284,0.00076712,120]
[322542555,1713043846264,-500.0,0.00076712,120]
[322542557,1713043846273,-927.78,0.00076712,120]
[322542559,1713043846281,-500.0,0.00076712,120]
[322542561,1713043846290,-2500.0,0.00076712,120]
[322542563,1713043846301,-2422.8,0.00076712,120]
[322542565,1713043846312,-1655.3,0.00076712,120]
[322542567,1713043846321,-500.0,0.00076712,120]
[322542569,1713043846330,-1725.76,0.00076712,120]
[322542571,1713043846339,-500.0,0.00076712,120]
[322542573,1713043846348,-500.0,0.00076712,120]
[322542574,1713043846357,-500.0,0.00076712,120]
[322542577,1713043846366,-500.0,0.00076712,120]
[322542578,1713043846375,-500.0,0.00076712,7]
[322542581,1713043846389,-4867.75,0.00076712,120]
[322542582,1713043846398,-2875.53,0.00076712,120]
[322542584,1713043846407,-500.0,0.00076712,120]
[322542586,1713043846417,-500.0,0.00076712,120]
[322542588,1713043846427,-632.13,0.00076712,120]
[322542590,1713043846436,-857.91,0.00076712,120]
[322542591,1713043846445,-500.0,0.00076712,120]
[322542592,1713043846453,-500.0,0.00076712,120]
[322542593,1713043846462,-500.0,0.00076712,120]
[322542594,1713043846471,-500.0,0.00076712,120]
[322542595,1713043846481,-500.0,0.00076712,120]
[322542596,1713043846490,-796.34,0.00076712,120]
[322542597,1713043846499,-500.0,0.00076712,120]
[322542598,1713043846508,-500.0,0.00076712,120]
[322542599,1713043846517,-500.0,0.00076712,120]
[322542600,1713043846526,-500.0,0.00076712,120]
[322542601,1713043846536,-543.36,0.00076712,120]
[322542602,1713043846545,-694.23,0.00076712,120]
[322542603,1713043846556,-500.0,0.00076712,120]
[322542604,1713043846565,-343.84115834,0.00076712,120]
[322542605,1713043846573,-500.0,0.00076712,120]
[322542606,1713043846582,-500.0,0.00076712,120]
[322542607,1713043846591,-2066.69,0.00076712,120]
[322542608,1713043846600,-500.0,0.00076712,120]
[322542609,1713043846609,-500.0,0.00076712,120]
[322542610,1713043846618,-500.0,0.00076712,120]
[322542611,1713043846628,-834.43,0.00076712,120]
[322542612,1713043846637,-500.0,0.00076712,60]
[322542613,1713043846647,-500.0,0.00076712,120]
[322542614,1713043846657,-500.0,0.00076712,120]
[322542615,1713043846667,-500.0,0.00076712,120]
[322542617,1713043846676,-500.0,0.00076712,120]
[322542619,1713043846686,-951.32,0.00076712,120]
[322542621,1713043846695,-500.0,0.00076712,120]
[322542622,1713043846704,-500.0,0.00076712,120]
[322542624,1713043846714,-2480.12,0.00076712,120]
[322542626,1713043846723,-500.0,0.00076712,120]
[322542628,1713043846733,-682.83,0.00076712,120]
[322542630,1713043846752,-500.0,0.00076712,120]
[322542632,1713043846765,-500.0,0.00076712,120]
[322542634,1713043846776,-500.0,0.00076712,120]
[322542636,1713043846785,-500.0,0.00076712,120]
[322542638,1713043846795,-500.0,0.00076712,120]
[322542640,1713043846806,-500.0,0.00076712,120]
[322542642,1713043846815,-514.53172071,0.00076712,120]
[322542644,1713043846825,-500.0,0.00076712,120]
[322542646,1713043846835,-500.0,0.00076712,120]
[322542648,1713043846845,-500.0,0.00076712,120]
[322542650,1713043846855,-1897.13,0.00076712,120]
[322542653,1713043846868,-500.0,0.00076712,120]
[322542654,1713043846877,-500.0,0.00076712,120]
[322542656,1713043846886,-500.0,0.00076712,120]
[322542658,1713043846896,-500.0,0.00076712,120]
[322542660,1713043846905,-1110.65,0.00076712,120]
[322542662,1713043846914,-500.0,0.00076712,120]
[322542664,1713043846923,-500.0,0.00076712,120]
[322542666,1713043846934,-500.0,0.00076712,120]
[322542669,1713043846943,-892.88,0.00076712,120]
[322542672,1713043846952,-501.26874581,0.00076712,120]
[322542675,1713043846962,-500.0,0.00076712,120]
[322542678,1713043846971,-612.97,0.00076712,120]
[322542681,1713043846981,-500.0,0.00076712,120]
[322542684,1713043846990,-538.12,0.00076712,120]
[322542686,1713043846999,-500.0,0.00076712,120]
[322542688,1713043847008,-24405.4,0.00076712,120]
[322542690,1713043847017,-500.0,0.00076712,120]
[322542692,1713043847026,-500.0,0.00076712,120]
[322542694,1713043847037,-500.0,0.00076712,120]
[322542696,1713043847048,-927.66,0.00076712,120]
[322542698,1713043847057,-7531.75,0.00076712,120]
[322542700,1713043847067,-500.0,0.00076712,120]
[322542702,1713043847076,-500.0,0.00076712,120]
[322542704,1713043847085,-500.0,0.00076712,120]
[322542706,1713043847094,-500.0,0.00076712,120]
[322542708,1713043847104,-500.0,0.00076712,120]
[322542710,1713043847113,-1956.19,0.00076712,21]
[322542712,1713043847122,-821.14,0.00076712,120]
[322542714,1713043847131,-500.0,0.00076712,120]
[322542716,1713043847141,-1208.76,0.00076712,2]
[322542718,1713043847150,-500.0,0.00076712,120]
[322542720,1713043847159,-604.78920847,0.00076712,120]
[322542722,1713043847169,-500.0,0.00076712,120]
[322542724,1713043847178,-500.0,0.00076712,120]
[322542733,1713043847249,-500.0,0.00076712,120]
[322542735,1713043847260,-500.0,0.00076712,120]
[322542737,1713043847269,-2913.78,0.00076712,120]
[322542739,1713043847279,-158.23278788,0.00076833,120]
[322542741,1713043847289,-154.95813214,0.00077997,7]
[322542743,1713043847302,-154.99990716,0.00077998,7]
[322542745,1713043847311,-210.41123135,0.00077999,2]
[322542747,1713043847321,-158.70213723,0.0007834,120]
[322542749,1713043847331,-343.0,0.0007835,7]
[322542751,1713043847341,-153.74365604,0.00078638,120]
[322542753,1713043847350,-153.74365604,0.00078818,120]
[322542755,1713043847359,-158.70213724,0.00079011,120]
[322542757,1713043847368,-153.74365606,0.00079969,120]
[322542759,1713043847380,-20238.99944239,0.0008,120]
[322542761,1713043847392,-300.0,0.0008,105]
[322542763,1713043847401,-500.00000067,0.000815,106]
[322542765,1713043847411,-169.199833,0.00082192,120]
[322542767,1713043847420,-200.20792,0.00082192,120]
[322542769,1713043847433,-182.808124,0.00086645,120]
[322542771,1713043847443,-862.13234932,0.00087945,120]
[322542773,1713043847452,-862.13234932,0.00087945,120]
[322542775,1713043847462,-862.13234932,0.00087945,120]
[322542777,1713043847471,-862.13234932,0.00087945,120]
[322542778,1713043847481,-862.13234932,0.00087945,120]
[322542780,1713043847491,-862.13234932,0.00087945,120]
[322542783,1713043847502,-862.13234932,0.00087945,120]
[322542784,1713043847511,-862.13234932,0.00087945,120]
[322542787,1713043847522,-862.13234932,0.00087945,120]
[322542788,1713043847532,-862.13234932,0.00087945,120]
[322542791,1713043847542,-862.13234932,0.00087945,120]
[322542793,1713043847555,-862.13234932,0.00087945,120]
[322542795,1713043847564,-862.13234932,0.00087945,120]
[322542796,1713043847574,-862.13234932,0.00087945,120]
[322542797,1713043847583,-862.13234932,0.00087945,120]
[322542799,1713043847594,-862.13234932,0.00087945,120]
[322542801,1713043847603,-862.13234932,0.00087945,120]
[322542803,1713043847613,-862.13234932,0.00087945,120]
[322542805,1713043847623,-862.13234932,0.00087945,120]
[322542807,1713043847632,-862.63,0.00087945,120]
[322542809,1713043847642,-2575.48,0.00089899,60]
[322542811,1713043847653,-2575.48,0.00089899,60]
[322542813,1713043847663,-50000.0,0.000899,7]
[322542815,1713043847673,-300.0,0.0009,120]
[322542817,1713043847682,-500.0,0.0009,90]
[322542819,1713043847691,-169.199833,0.00091324,120]
[322542821,1713043847701,-300.0,0.000925,120]
[322542823,1713043847711,-150.8642222,0.00094522,2]
[322542825,1713043847720,-300.0,0.00095,120]
[322542827,1713043847730,-151.0,0.00097233,120]
[322542829,1713043847740,-300.0,0.000975,120]
[322542831,1713043847750,-553.35590545,0.00098,120]
[322542833,1713043847759,-500.0,0.00098626,120]
[322542835,1713043847768,-500.0,0.00098626,120]
[322542836,1713043847778,-500.0,0.00098626,120]
[322542838,1713043847787,-500.0,0.00098626,120]
[322542840,1713043847801,-500.0,0.00098626,120]
[322542842,1713043847811,-500.0,0.00098626,120]
[322542844,1713043847820,-611.29418292,0.00098626,120]
[322542846,1713043847830,-500.0,0.00098626,120]
[322542848,1713043847839,-500.0,0.00098626,120]
[322542850,1713043847849,-501.15222337,0.0009863,120]
[322542852,1713043847859,-500.0,0.0009863,120]
[322542854,1713043847868,-500.0,0.0009863,120]
[322542856,1713043847879,-500.0,0.0009863,120]
[322542858,1713043847889,-500.0,0.0009863,120]
[322542860,1713043847898,-559.6,0.0009863,120]
[322542862,1713043847908,-500.0,0.0009863,120]